fUST/lending_fUST_20250301
["ID","MTS","AMOUNT","RATE_DAILY","PERIOD"]
[354869930,1740763519418,-500.0,0.00049863,120]
[354869931,1740763519450,-500.0,0.00049863,120]
[354869932,1740763519480,-500.0,0.00049863,120]
[354869933,1740763519510,-500.0,0.00049863,120]
[354869934,1740763519540,-1148.56,0.00049863,120]
[354869935,1740763519575,-500.0,0.00049863,120]
[354869936,1740763519605,-500.0,0.00049863,120]
[354869937,1740763519635,-508.65853171,0.00049863,120]
[354869938,1740763519665,-500.0,0.00049863,120]
[354869939,1740763519694,-500.0,0.00049863,120]
[354869940,1740763519724,-2506.28,0.00049863,120]
[354869941,1740763519753,-500.0,0.00049863,120]
[354869942,1740763519782,-1264.19,0.00049863,120]
[354869943,1740763519810,-500.0,0.00049863,120]
[354869944,1740763519840,-500.0,0.00049863,120]
[354869945,1740763519870,-500.0,0.00049863,120]
[354869946,1740763519898,-500.0,0.00049863,120]
[354869947,1740763519926,-500.0,0.00049863,120]
[354869948,1740763519952,-500.0,0.00049863,120]
[354869949,1740763519980,-500.0,0.00049863,120]
[354869950,1740763520009,-631.0593378,0.00049863,120]
[354869951,1740763520037,-1629.01,0.00049863,120]
[354869952,1740763520065,-500.0,0.00049863,120]
[354869953,1740763520095,-500.0,0.00049863,120]
[354869954,1740763520123,-500.0,0.00049863,120]
[354869955,1740763520151,-574.5,0.00049863,120]
[354869956,1740763520179,-500.0,0.00049863,120]
[354869957,1740763520206,-500.0,0.00049863,120]
[354869958,1740763520233,-500.0,0.00049863,120]
[354869959,1740763520262,-500.0,0.00049863,120]
[354869960,1740763520293,-500.0,0.00049863,120]
[354869961,1740763520322,-500.0,0.00049863,120]
[354869962,1740763520351,-500.0,0.00049863,120]
[354869963,1740763520381,-500.0,0.00049863,120]
[354869964,1740763520409,-501.7049634,0.00049863,120]
[354869965,1740763520436,-500.0,0.00049863,120]
[354869966,1740763520463,-500.0,0.00049863,120]
[354869967,1740763520490,-666.25,0.00049863,120]
[354869968,1740763520518,-500.0,0.00049863,120]
[354869969,1740763520671,-502.89614506,0.00049863,120]
[354869970,1740763520700,-506.09215859,0.00049863,120]
[354869971,1740763520728,-500.0,0.00049863,120]
[354869972,1740763520756,-500.0,0.00049863,120]
[354869973,1740763520784,-703.82,0.00049863,120]
[354869974,1740763520812,-500.0,0.00049863,120]
[354869975,1740763520838,-504.77744416,0.00049863,120]
[354869976,1740763520867,-500.0,0.00049863,120]
[354869977,1740763520896,-500.0,0.00049863,120]
[354869978,1740763520922,-500.0,0.00049863,120]
[354869979,1740763520949,-500.0,0.00049863,120]
[354869980,1740763520976,-500.0,0.00049863,120]
[354869981,1740763521002,-1569.49,0.00049863,120]
[354869982,1740763521028,-500.0,0.00049863,120]
[354869983,1740763521054,-500.0,0.00049863,120]
[354869984,1740763521081,-787.92,0.00049863,120]
[354869985,1740763521108,-563.94873085,0.00049863,120]
[354869986,1740763521136,-500.0,0.00049863,120]
[354869987,1740763521163,-1233.89,0.00049863,120]
[354869988,1740763521190,-500.0,0.00049863,120]
[354869989,1740763521217,-500.0,0.00049863,120]
[354869990,1740763521244,-503.85523431,0.00049863,120]
[354869991,1740763521272,-500.0,0.00049863,120]
[354869992,1740763521300,-395.39839817,0.00049863,120]
[354869993,1740763521328,-500.0,0.00049863,120]
[354869994,1740763521356,-500.0,0.00049863,120]
[354869995,1740763521385,-500.0,0.00049863,120]
[354869996,1740763521412,-500.0,0.00049863,120]
[354869997,1740763521439,-500.0,0.00049863,120]
[354869998,1740763521466,-500.0,0.00049863,120]
[354869999,1740763521494,-518.06,0.00049863,120]
[354870000,1740763521521,-500.0,0.00049863,120]
[354870001,1740763521548,-500.0,0.00049863,120]
[354870002,1740763521575,-500.0,0.00049863,120]
[354870003,1740763521603,-500.0,0.00049863,120]
[354870004,1740763521630,-500.0,0.00049863,120]
[354870005,1740763521656,-500.0,0.00049863,120]
[354870006,1740763521685,-1344.52,0.00049863,120]
[354870007,1740763521711,-1065.91,0.00049863,120]
[354870008,1740763521737,-2091.64,0.00049863,120]
[354870009,1740763521763,-500.0,0.00049863,120]
[354870010,1740763521789,-500.0,0.00049863,120]
[354870011,1740763521815,-500.0,0.00049863,120]
[354870012,1740763521842,-226.63760584,0.00049863,120]
[354870013,1740763521869,-541.57033908,0.00049863,120]
[354870014,1740763521895,-500.0,0.00049863,120]
[354870015,1740763521922,-500.0,0.00049863,120]
[354870016,1740763521949,-1000.0,0.00049863,120]
[354870017,1740763521975,-1671.97,0.00049863,120]
[354870018,1740763522002,-500.0,0.00049863,120]
[354870019,1740763522028,-500.0,0.00049863,120]
[354870020,1740763522054,-500.0,0.00049863,120]
[354870021,1740763522081,-500.0,0.00049863,120]
[354870022,1740763522108,-500.0,0.00049863,120]
[354870023,1740763522135,-841.24,0.00049863,120]
[354870024,1740763522162,-500.0,0.00049863,120]
[354870025,1740763522302,-500.0,0.00049863,120]
[354870026,1740763522330,-506.51218254,0.00049863,120]
[354870027,1740763522360,-500.0,0.00049863,120]
[354870028,1740763522387,-2205.86,0.00049863,120]
[354870029,1740763522413,-500.0,0.00049863,120]
[354870030,1740763522440,-500.0,0.00049863,120]
[354870031,1740763522468,-926.05,0.00049863,120]
[354870032,1740763522495,-1146.34,0.00049863,120]
[354870033,1740763522522,-514.36864064,0.00049863,120]
[354870034,1740763522549,-500.0,0.00049863,120]
[354870035,1740763522575,-2488.23,0.00049863,120]
[354870036,1740763522605,-500.0,0.00049863,120]
[354870037,1740763522631,-500.0,0.00049863,120]
[354870038,1740763522657,-500.0,0.00049863,120]
[354870039,1740763522684,-500.0,0.00049863,120]
[354870040,1740763522712,-1011.27,0.00049863,120]
[354870041,1740763522740,-500.0,0.00049863,120]
[354870042,1740763522768,-500.0,0.00049863,120]
[354870043,1740763522796,-500.0,0.00049863,120]
[354870044,1740763522823,-500.0,0.00049863,120]
[354870045,1740763522856,-500.0,0.00049863,120]
[354870046,1740763522885,-593.09,0.00049863,120]
[354870047,1740763522913,-500.0,0.00049863,120]
[354870048,1740763522940,-500.0,0.00049863,120]
[354870049,1740763522967,-500.0,0.00049863,120]
[354870050,1740763522994,-500.0,0.00049863,120]
[354870051,1740763523022,-500.0,0.00049863,120]
[354870052,1740763523049,-500.0,0.00049863,120]
[354870053,1740763523076,-500.0,0.00049863,120]
[354870054,1740763523106,-500.0,0.00049863,120]
[354870055,1740763523133,-826.25,0.00049863,120]
[354870056,1740763523160,-917.02,0.00049863,120]
[354870057,1740763523188,-994.45,0.00049863,120]
[354870058,1740763523216,-500.0,0.00049863,120]
[354870059,1740763523248,-500.0,0.00049863,120]
[354870060,1740763523279,-500.0,0.00049863,120]
[354870061,1740763523307,-500.0,0.00049863,120]
[354870062,1740763523335,-500.0,0.00049863,120]
[354870063,1740763523366,-1532.13,0.00049863,120]
[354870064,1740763523393,-500.0,0.00049863,120]
[354870065,1740763523422,-500.0,0.00049863,120]
[354870066,1740763523450,-500.0,0.00049863,120]
[354870067,1740763523478,-1129.68,0.00049863,120]
[354870068,1740763523507,-500.0,0.00049863,120]
[354870069,1740763523534,-503.98114988,0.00049863,120]
[354870070,1740763523562,-2323.23,0.00049863,120]
[354870071,1740763523590,-500.0,0.00049863,120]
[354870072,1740763523624,-500.0,0.00049863,120]
[354870073,1740763523653,-500.0,0.00049863,120]
[354870074,1740763523682,-479.33969656,0.00049863,120]
[354870075,1740763523711,-651.05,0.00049863,120]
[354870076,1740763523740,-500.0,0.00049863,120]
[354870077,1740763523768,-500.0,0.00049863,120]
[354870078,1740763523894,-500.0,0.00049863,120]
[354870079,1740763523930,-500.0,0.00049863,120]
[354870080,1740763523957,-500.0,0.00049863,120]
[354870081,1740763523986,-500.0,0.00049863,120]
[354870082,1740763524016,-411.06079149,0.00049863,120]
[354870083,1740763524045,-500.0,0.00049863,120]
[354870084,1740763524073,-500.0,0.00049863,120]
[354870085,1740763524106,-500.0,0.00049863,120]
[354870086,1740763524134,-500.0,0.00049863,120]
[354870087,1740763524161,-500.0,0.00049863,120]
[354870088,1740763524189,-511.83,0.00049863,120]
[354870089,1740763524216,-505.23390745,0.00049863,120]
[354870090,1740763524244,-774.0,0.00049863,120]
[354870091,1740763524273,-500.0,0.00049863,120]
[354870092,1740763524301,-500.0,0.00049863,120]
[354870093,1740763524331,-500.0,0.00049863,120]
[354870094,1740763524360,-500.0,0.00049863,120]
[354870095,1740763524389,-500.0,0.00049863,120]
[354870096,1740763524417,-500.0,0.00049863,120]
[354870097,1740763524446,-500.0,0.00049863,120]
[354870098,1740763524474,-152.14641524,0.00049863,120]
[354870099,1740763524502,-500.0,0.00049863,120]
[354870100,1740763524529,-500.0,0.00049863,120]
[354870101,1740763524558,-500.0,0.00049863,120]
[354870102,1740763524587,-500.0,0.00049863,120]
[354870103,1740763524619,-500.0,0.00049863,120]
[354870104,1740763524648,-500.0,0.00049863,120]
[354870105,1740763524677,-500.0,0.00049863,120]
[354870106,1740763524705,-500.0,0.00049863,120]
[354870107,1740763524732,-463.10842632,0.00049863,120]
[354870108,1740763524760,-500.0,0.00049863,120]
[354870109,1740763524788,-1187.05,0.00049863,120]
[354870110,1740763524816,-500.0,0.00049863,120]
[354870111,1740763524844,-500.0,0.00049863,120]
[354870112,1740763524874,-500.0,0.00049863,120]
[354870113,1740763524903,-500.0,0.00049863,120]
[354870114,1740763524931,-990.19,0.00049863,120]
[354870115,1740763524959,-173.62963501,0.00049863,120]
[354870116,1740763524987,-500.0,0.00049863,120]
[354870117,1740763525016,-2063.2,0.00049863,120]
[354870118,1740763525044,-500.0,0.00049863,120]
[354870119,1740763525073,-500.0,0.00049863,120]
[354870120,1740763525104,-502.49890242,0.00049863,120]
[354870121,1740763525133,-588.96,0.00049863,120]
[354870122,1740763525163,-502.98,0.00049863,120]
[354870123,1740763525193,-500.0,0.00049863,120]
[354870124,1740763525222,-3034.08,0.00049863,120]
[354870125,1740763525249,-500.0,0.00049863,120]
[354870126,1740763525280,-500.0,0.00049863,120]
[354870127,1740763525311,-500.0,0.00049863,120]
[354870128,1740763525339,-500.0,0.00049863,120]
[354870129,1740763525371,-500.0,0.00049863,120]
[354870130,1740763525487,-500.0,0.00049863,120]
[354870131,1740763525532,-500.0,0.00049863,120]
[354870132,1740763525561,-500.0,0.00049863,120]
[354870133,1740763525591,-500.0,0.00049863,120]
[354870134,1740763525621,-668.35,0.00049863,120]
[354870135,1740763525648,-500.0,0.00049863,120]
[354870136,1740763525677,-500.0,0.00049863,120]
[354870137,1740763525706,-183.61723593,0.00049863,120]
[354870138,1740763525735,-500.0,0.00049863,120]
[354870139,1740763525763,-503.46,0.00049863,120]
[354870140,1740763525791,-500.0,0.00049863,120]
[354870141,1740763525819,-500.0,0.00049863,120]
[354870142,1740763525849,-552.14,0.00049863,120]
[354870143,1740763525878,-524.63,0.00049863,120]
[354870144,1740763525908,-500.0,0.00049863,120]
[354870145,1740763525936,-500.0,0.00049863,120]
[354870146,1740763525964,-500.0,0.00049863,120]
[354870147,1740763525992,-500.0,0.00049863,120]
[354870148,1740763526020,-500.0,0.00049863,120]
[354870149,1740763526048,-500.0,0.00049863,120]
[354870150,1740763526077,-500.0,0.00049863,120]
[354870151,1740763526106,-500.0,0.00049863,120]
[354870152,1740763526134,-500.0,0.00049863,120]
[354870153,1740763526161,-1000.0,0.00049863,60]
[354870154,1740763526189,-500.0,0.00049863,120]
[354870155,1740763526217,-500.0,0.00049863,120]
[354870156,1740763526247,-500.0,0.00049863,120]
[354870158,1740763526278,-500.0,0.00049863,120]
[354870159,1740763526306,-500.0,0.00049863,120]
[354870160,1740763526337,-2302.67,0.00049863,120]
[354870161,1740763526369,-1124.22,0.00049863,120]
[354870162,1740763526399,-500.0,0.00049863,120]
[354870163,1740763526429,-500.0,0.00049863,120]
[354870164,1740763526464,-500.0,0.00049863,120]
[354870165,1740763526498,-754.61,0.00049863,120]
[354870166,1740763526532,-500.0,0.00049863,120]
[354870168,1740763526566,-500.0,0.00049863,120]
[354870169,1740763526601,-500.0,0.00049863,120]
[354870170,1740763526636,-500.0,0.00049863,120]
[354870171,1740763526670,-500.0,0.00049863,120]
[354870172,1740763526705,-500.0,0.00049863,120]
[354870173,1740763526738,-500.0,0.00049863,120]
[354870174,1740763526770,-500.0,0.00049863,120]
[354870175,1740763526803,-724.08,0.00049863,120]
[354870176,1740763526835,-500.0,0.00049863,120]
[354870177,1740763526869,-500.0,0.00049863,120]
[354870178,1740763526901,-500.0,0.00049863,120]
[354870179,1740763526934,-500.0,0.00049863,120]
[354870180,1740763526968,-500.0,0.00049863,120]
[354870181,1740763527001,-500.0,0.00049863,120]
[354870182,1740763527036,-500.0,0.00049863,120]
[354870183,1740763527184,-500.0,0.00049863,120]
[354870184,1740763527218,-500.0,0.00049863,120]
[354870185,1740763527252,-500.0,0.00049863,120]
[354870186,1740763527291,-508.10651886,0.00049863,120]
[354870187,1740763527326,-500.0,0.00049863,120]
[354870188,1740763527361,-363.50191849,0.00049863,120]
[354870189,1740763527396,-500.0,0.00049863,120]
[354870190,1740763527432,-500.0,0.00049863,120]
[354870191,1740763527465,-500.0,0.00049863,120]
[354870192,1740763527501,-500.0,0.00049863,120]
[354870193,1740763527535,-500.0,0.00049863,120]
[354870194,1740763527569,-500.0,0.00049863,120]
[354870195,1740763527608,-500.0,0.00049863,120]
[354870196,1740763527642,-500.0,0.00049863,120]
[354870197,1740763527677,-500.0,0.00049863,120]
[354870198,1740763527710,-502.01907183,0.00049863,120]
[354870199,1740763527744,-573.39,0.00049863,120]
[354870200,1740763527777,-500.0,0.00049863,120]
[354870201,1740763527810,-503.54467219,0.00049863,120]
[354870202,1740763527844,-593.09,0.00049863,120]
[354870203,1740763527879,-500.0,0.00049863,120]
[354870204,1740763527911,-500.0,0.00049863,120]
[354870205,1740763527944,-500.0,0.00049863,120]
[354870206,1740763527978,-500.0,0.00049863,120]
[354870207,1740763528010,-501.58259781,0.00049863,120]
[354870208,1740763528074,-500.0,0.00049863,120]
[354870209,1740763528143,-500.0,0.00049863,120]
[354870210,1740763528201,-500.0,0.00049863,120]
[354870211,1740763528266,-500.0,0.00049863,120]
[354870212,1740763528329,-500.0,0.00049863,120]
[354870213,1740763528384,-1697.01,0.00049863,120]
[354870214,1740763528434,-500.0,0.00049863,120]
[354870215,1740763528488,-500.0,0.00049863,120]
[354870216,1740763528542,-500.0,0.00049863,120]
[354870217,1740763528595,-780.75,0.00049863,120]
[354870218,1740763528649,-509.1268362,0.00049863,120]
[354870219,1740763528703,-500.0,0.00049863,120]
[354870220,1740763528758,-1221.28,0.00049863,120]
[354870221,1740763528810,-500.0,0.00049863,120]
[354870222,1740763528865,-528.7,0.00049863,120]
[354870223,1740763528918,-500.0,0.00049863,120]
[354870224,1740763528972,-509.67945672,0.00049863,120]
[354870225,1740763529024,-500.0,0.00049863,120]
[354870226,1740763529076,-713.46,0.00049863,120]
[354870227,1740763529130,-3718.03,0.00049863,120]
[354870228,1740763529164,-500.0,0.00049863,120]
[354870229,1740763529199,-1353.29,0.00049863,120]
[354870230,1740763529234,-500.0,0.00049863,120]
[354870231,1740763529270,-2543.18,0.00049863,120]
[354870232,1740763529537,-879.65,0.00049863,120]
[354870233,1740763529573,-1268.46,0.00049863,120]
[354870234,1740763529610,-500.0,0.00049863,120]
[354870235,1740763529647,-500.0,0.00049863,120]
[354870236,1740763529683,-500.0,0.00049863,120]
[354870237,1740763529718,-500.0,0.00049863,120]
[354870238,1740763529752,-507.07696303,0.00049863,120]
[354870239,1740763529788,-840.06,0.00049863,120]
[354870240,1740763529823,-1098.58,0.00049863,120]
[354870241,1740763529859,-500.0,0.00049863,120]
[354870242,1740763529896,-500.0,0.00049863,120]
[354870243,1740763529931,-500.0,0.00049863,120]
[354870244,1740763529965,-4478.17,0.00049863,120]
[354870245,1740763529999,-2266.57,0.00049863,120]
[354870246,1740763530036,-506.67806831,0.00049863,120]
[354870247,1740763530070,-1447.4,0.00049863,120]
[354870248,1740763530105,-27400.98,0.00049863,120]
[354870249,1740763530139,-500.0,0.00049863,120]
[354870250,1740763530172,-500.0,0.00049863,120]
[354870251,1740763530205,-500.0,0.00049863,120]
[354870252,1740763530238,-500.0,0.00049863,120]
[354870253,1740763530277,-804.14,0.00049863,120]
[354870254,1740763530311,-251.33228994,0.00049863,120]
[354870255,1740763530353,-500.0,0.00049863,120]
[354870256,1740763530388,-931.72,0.00049863,120]
[354870257,1740763530421,-500.0,0.00049863,120]
[354870258,1740763530454,-500.0,0.00049863,120]
[354870259,1740763530488,-500.0,0.00049863,120]
[354870260,1740763530522,-500.0,0.00049863,120]
[354870261,1740763530555,-500.0,0.00049863,120]
[354870262,1740763530589,-500.0,0.00049863,120]
[354870264,1740763530635,-2476.74,0.00049863,120]
[354870265,1740763530680,-500.0,0.00049863,120]
[354870266,1740763530718,-4293.14,0.00049863,120]
[354870267,1740763530756,-500.0,0.00049863,120]
[354870268,1740763530792,-500.0,0.00049863,120]
[354870269,1740763530828,-503.77746826,0.00049863,120]
[354870270,1740763530865,-538.09,0.00049863,120]
[354870271,1740763530901,-500.0,0.00049863,120]
[354870272,1740763530936,-510.29889161,0.00049863,120]
[354870273,1740763530972,-500.0,0.00049863,120]
[354870274,1740763531008,-500.0,0.00049863,120]
[354870275,1740763531043,-1007.07,0.00049863,120]
[354870276,1740763531079,-642.06,0.00049863,120]
[354870277,1740763531116,-500.0,0.00049863,120]
[354870278,1740763531150,-500.0,0.00049863,120]
[354870279,1740763531185,-952.89,0.00049863,120]
[354870280,1740763531219,-6217.21,0.00049863,120]
[354870281,1740763531254,-507.46640474,0.00049863,120]
[354870282,1740763531296,-500.0,0.00049863,120]
[354870283,1740763531332,-500.0,0.00049863,120]
[354870284,1740763531372,-500.0,0.00049863,120]
[354870285,1740763531408,-3197.64,0.00049863,120]
[354870286,1740763531445,-500.0,0.00049863,120]
[354870287,1740763531485,-500.0,0.00049863,120]
[354870288,1740763531519,-500.0,0.00049863,120]
[354870289,1740763531554,-500.0,0.00049863,120]
[354870290,1740763531592,-1754.32,0.00049863,120]
[354870292,1740763531628,-500.0,0.00049863,120]
[354870293,1740763531665,-500.0,0.00049863,120]
[354870294,1740763531700,-763.79,0.00049863,120]
[354870295,1740763531892,-500.0,0.00049863,120]
[354870296,1740763531928,-5496.43,0.00049863,120]
[354870297,1740763531963,-500.0,0.00049863,120]
[354870298,1740763531998,-934.9,0.00049863,120]
[354870299,1740763532031,-515.86,0.00049863,120]
[354870300,1740763532066,-500.0,0.00049863,120]
[354870301,1740763532105,-2890.58,0.00049863,120]
[354870302,1740763532141,-500.0,0.00049863,120]
[354870303,1740763532176,-500.0,0.00049863,120]
[354870304,1740763532211,-6720.05,0.00049863,120]
[354870305,1740763532246,-1090.96,0.00049863,120]
[354870306,1740763532283,-500.0,0.00049863,120]
[354870307,1740763532317,-500.0,0.00049863,120]
[354870308,1740763532355,-500.0,0.00049863,120]
[354870309,1740763532390,-22918.52,0.00049863,120]
[354870310,1740763532424,-674.83,0.00049863,120]
[354870311,1740763532457,-1959.84,0.00049863,120]
[354870312,1740763532490,-500.0,0.00049863,120]
[354870313,1740763532524,-500.0,0.00049863,120]
[354870314,1740763532558,-9025.25,0.00049863,120]
[354870315,1740763532594,-500.0,0.00049863,120]
[354870316,1740763532630,-500.0,0.00049863,120]
[354870317,1740763532661,-500.0,0.00049863,120]
[354870318,1740763532692,-690.65,0.00049863,120]
[354870319,1740763532723,-500.0,0.00049863,120]
[354870320,1740763532757,-3286.73,0.00049863,120]
[354870321,1740763532788,-500.0,0.00049863,120]
[354870322,1740763532819,-869.44,0.00049863,120]
[354870323,1740763532849,-500.0,0.00049863,120]
[354870324,1740763532879,-500.0,0.00049863,120]
[354870325,1740763532909,-500.0,0.00049863,120]
[354870326,1740763532940,-2161.42,0.00049863,120]
[354870327,1740763532972,-500.0,0.00049863,120]
[354870328,1740763533003,-1203.18,0.00049863,120]
[354870329,1740763533036,-527.09214301,0.00049863,120]
[354870330,1740763533069,-1743.69,0.00049863,120]
[354870331,1740763533102,-500.0,0.00049863,120]
[354870332,1740763533136,-1904.71,0.00049863,120]
[354870334,1740763533186,-1807.51,0.00049863,120]
[354870335,1740763533227,-500.0,0.00049863,120]
[354870336,1740763533264,-500.0,0.00049863,120]
[354870337,1740763533305,-572.8,0.00049863,120]
[354870338,1740763533341,-500.0,0.00049863,120]
[354870339,1740763533380,-463.03487807,0.00049863,120]
[354870340,1740763533415,-500.0,0.00049863,120]
[354870341,1740763533452,-500.0,0.00049863,120]
[354870342,1740763533488,-500.0,0.00049863,120]
[354870343,1740763533525,-1222.38,0.00049863,120]
[354870344,1740763533561,-500.0,0.00049863,120]
[354870345,1740763533596,-500.0,0.00049863,120]
[354870347,1740763533634,-997.58,0.00049863,120]
[354870348,1740763533669,-1635.3,0.00049863,120]
[354870349,1740763533703,-500.0,0.00049863,120]
[354870350,1740763533737,-535.26,0.00049863,120]
[354870351,1740763533771,-555.6,0.00049863,120]
[354870352,1740763533806,-4600.73,0.00049863,120]
[354870353,1740763533843,-11109.96,0.00049863,120]
[354870354,1740763533882,-5240.82,0.00049863,120]
[354870355,1740763533917,-500.0,0.00049863,120]
[354870356,1740763533952,-3675.61424289,0.00049999,120]
[354870357,1740763533985,-528.4960247,0.00049999,120]
[354870358,1740763534019,-405.33640899,0.0005,120]
[354870359,1740763534053,-504.0,0.0005,120]
[354870360,1740763534087,-1000.0,0.0005,120]
[354870361,1740763534126,-3000.0,0.0005,120]
[354870362,1740763534164,-500.0,0.00050136,120]
[354870363,1740763534199,-500.0,0.00050136,120]
[354870364,1740763534234,-500.0,0.00050136,120]
[354870365,1740763534269,-171.04240597,0.00050136,120]
[354870366,1740763534307,-500.0,0.00050136,120]
[354870367,1740763534341,-502.57186386,0.00050136,120]
[354870368,1740763534377,-501.26438529,0.00050136,120]
[354870369,1740763534412,-500.0,0.00050136,120]
[354870370,1740763534446,-726.38,0.00050136,120]
[354870371,1740763534477,-500.0,0.00050136,120]
[354870372,1740763534509,-508.60176546,0.00050136,120]
[354870373,1740763534542,-500.0,0.00050136,120]
[354870374,1740763534575,-2517.67,0.00050136,120]
[354870375,1740763534608,-244.5347808,0.00050136,120]
[354870376,1740763534640,-254.47779688,0.00050136,120]
[354870377,1740763534672,-500.0,0.00050136,120]
[354870378,1740763534704,-500.0,0.00050136,120]
[354870379,1740763534736,-500.0,0.00050136,120]
[354870380,1740763534771,-500.0,0.00050136,120]
[354870381,1740763534803,-500.0,0.00050136,120]
[354870382,1740763534834,-500.0,0.00050136,120]
[354870383,1740763534865,-570.76,0.00050136,120]
[354870384,1740763535062,-500.0,0.00050136,120]
[354870385,1740763535096,-500.0,0.00050136,120]
[354870386,1740763535132,-500.0,0.00050136,120]
[354870387,1740763535165,-500.0,0.00050136,120]
[354870388,1740763535198,-500.0,0.00050136,120]
[354870389,1740763535231,-500.0,0.00050136,120]
[354870390,1740763535264,-500.0,0.00050136,120]
[354870391,1740763535300,-500.0,0.00050136,120]
[354870392,1740763535336,-500.0,0.00050136,120]
[354870393,1740763535378,-777.18,0.00050136,120]
[354870394,1740763535413,-500.0,0.00050136,120]
[354870395,1740763535448,-500.0,0.00050136,120]
[354870396,1740763535482,-500.0,0.00050136,120]
[354870397,1740763535516,-500.0,0.00050136,120]
[354870398,1740763535549,-918.28,0.00050136,120]
[354870399,1740763535584,-500.0,0.00050136,120]
[354870400,1740763535619,-500.0,0.00050136,120]
[354870401,1740763535654,-1189.99,0.00050136,120]
[354870402,1740763535688,-500.0,0.00050136,120]
[354870403,1740763535720,-500.0,0.00050136,120]
[354870404,1740763535752,-500.0,0.00050136,120]
[354870405,1740763535790,-500.0,0.00050136,120]
[354870406,1740763535826,-172.30371127,0.00050136,120]
[354870407,1740763535866,-500.0,0.00050136,120]
[354870408,1740763535898,-324.40035907,0.00050136,120]
[354870409,1740763535931,-500.0,0.00050136,120]
[354870410,1740763535966,-502.92483552,0.00050136,120]
[354870411,1740763536000,-500.0,0.00050136,120]
[354870412,1740763536035,-500.0,0.00050136,120]
[354870413,1740763536068,-500.0,0.00050136,120]
[354870414,1740763536102,-500.0,0.00050136,120]
[354870415,1740763536137,-500.0,0.00050136,120]
[354870416,1740763536170,-500.0,0.00050136,120]
[354870417,1740763536203,-500.0,0.00050136,120]
[354870418,1740763536235,-500.0,0.00050136,120]
[354870419,1740763536268,-304.53440615,0.00050136,120]
[354870420,1740763536306,-500.0,0.00050136,120]
[354870421,1740763536341,-500.0,0.00050136,120]
[354870422,1740763536379,-500.0,0.00050136,120]
[354870423,1740763536413,-500.0,0.00050136,120]
[354870424,1740763536446,-656.3,0.00050136,120]
[354870425,1740763536480,-510.74538187,0.00050136,120]
[354870426,1740763536514,-500.0,0.00050136,120]
[354870427,1740763536547,-272.7384286,0.00050136,120]
[354870428,1740763536582,-2069.18,0.00050136,120]
[354870429,1740763536614,-500.0,0.00050136,120]
[354870430,1740763536646,-500.0,0.00050136,120]
[354870431,1740763536680,-500.0,0.00050136,120]
[354870432,1740763536713,-500.0,0.00050136,120]
[354870433,1740763536744,-505.38307658,0.00050136,120]
[354870434,1740763536776,-500.0,0.00050136,120]
[354870435,1740763536808,-1148.56,0.00050136,120]